[Event "67th Mexican-ch Open 2022"]
[Site "Chihuahua"]
[Date "2022.04.14"]
[Round "2.15"]
[White "Torres Rosas, Luis Carlos"]
[Black "Rosales Campos, Paul"]
[Result "0-1"]
[ECO "C00"]
[WhiteElo "2356"]
[BlackElo "2039"]
[Annotator "TA"]
[PlyCount "62"]
[EventDate "2022.04.12"]
[EventType "swiss"]
[EventCountry "MEX"]
[SourceTitle "playchess.com"]
[Source "ChessBase"]
[SourceQuality "1"]
[TimeControl "5400+30"]

{[%evp 12,62,0,-12,11,-6,6,0,4,-2,17,0,10,4,15,11,85,87,89,81,58,6,35,0,14,0,0,0,0,33,33,33,33,43,39,0,0,0,0,0,0,-367,-232,-414,0,0,0,-1326,-1035,-1256,-1275,-1050,-969]} 1. e4 {[%emt 0:00:08]} c5 {[%emt 0:00:50]} 2. Nf3 {[%emt 0:00:09]} e6 {[%emt 0:00:43]} 3. Qe2 {[%emt 0:00:13]} Nc6 {[%emt 0:08:52]} 4. g3 {[%emt 0:00:10]} Be7 {[%emt 0:01:19]} 5. Bg2 {[%emt 0:00:23]} d5 {[%emt 0:03:34]} 6. d3 {[%emt 0:00:08]} Nf6 {[%emt 0:01:35]} 7. O-O {[%emt 0:00:17]} h6 {[%emt 0:02:00] C00: French: Unusual White 2nd moves.} 8. a3 {[%emt 0:11:30] [#]} b6 $146 {[%emt 0:09:03]} ({Predecessor:} 8... a5 9. Re1 a4 10. Nbd2 Qc7 11. e5 Nd7 12. Nf1 b5 13. h4 g5 14. hxg5 hxg5 15. N1h2 {1-0 (48) Bertona,F (2411)-Guerrero Alvarez,R (2207) Alicante 2001}) 9. e5 {[%emt 0:00:37]} Nd7 {[%emt 0:01:17] The position is equal.} 10. c4 {[%emt 0:00:04]} d4 {[%emt 0:03:34]} 11. Ne1 {[%emt 0:05:48]} Bb7 {[%emt 0:08:12]} (11... Ndxe5 $2 12. f4 $18) 12. f4 {[%emt 0:03:03]} Qc7 {[%emt 0:02:34]} 13. Nd2 {[%emt 0:01:00]} g5 {[%emt 0:14:02]} (13... Rb8 $11) 14. Ne4 $1 $16 {[%emt 0:01:41]} O-O-O {[%emt 0:00:27]} 15. Nf3 {[%emt 0:04:31][%cal Rf4g5]} (15. fxg5 $6 Ncxe5 16. Nf3 Nxf3+ 17. Rxf3 Ne5 $11) 15... g4 {[%emt 0:05:25]} 16. Nfd2 {[%emt 0:19:31]} ({White should play} 16. Nh4 $14) 16... h5 $11 {[%emt 0:01:06]} 17. b4 {[%emt 0:01:05]} h4 $1 {[%emt 0:11:56]} 18. Nb3 {[%emt 0:07:28]} hxg3 $1 {[%emt 0:04:03]} 19. hxg3 {[%emt 0:00:07]} Rh7 {[%emt 0:02:50]} 20. bxc5 {[%emt 0:04:17]} (20. Qxg4 cxb4 21. axb4 Bxb4 $14) (20. b5 Ncxe5 21. fxe5 Nxe5 $14) 20... Nxc5 {[%emt 0:01:22]} 21. Nbxc5 {[%emt 0:00:41]} Bxc5 {[%emt 0:00:24]} 22. Bd2 {[%emt 0:08:53][%cal Od2b4]} Ne7 {[%emt 0:12:36]} 23. Bb4 {[%emt 0:10:45]} (23. Qxg4 Nf5 $15) (23. Ng5 $5 {[%cal Rg5h7]} Rg7 24. Bb4 $14 (24. Qxg4 Nf5 $11)) 23... Nf5 $1 {[%emt 0:00:55]} 24. Bxc5 {[%emt 0:01:52]} (24. Qxg4 $2 Rg7 25. Qf3 Nxg3 $1 {[%mdl 512]} 26. Qxg3 Rxg3 27. Nxg3 Rg8 28. Bxb7+ Kxb7 $19) 24... bxc5 {[%emt 0:01:49]} 25. Rfb1 {[%emt 0:05:50][%cal Oe4d6] Strongly threatening Nd6+!} Bc6 $1 {[%emt 0:00:17] And now ...Ne3 would win.} 26. Qb2 $2 {[%emt 0:06:02][%mdl 8192]} (26. Nxc5 Rdh8 27. Ne4 Rh2 $19) (26. Qxg4 $2 Rg7 27. Qd1 (27. Ng5 $2 Bxg2 28. Rb2 Bc6 $19) 27... Rh8 $19) (26. Nf6 $1 $11 {and White is okay.} Ne3 27. Bxc6 (27. Nxh7 Bxg2 28. Qa2 f5 $11) 27... Qxc6 28. Nxh7) 26... Rdh8 $1 $19 {[%emt 0:01:25][%cal Bd8h8,Bh8h2,Bh2g2,Bg2b2][%mdl 32] ...Ne3 is the strong threat.} 27. Nd6+ $2 {[%emt 0:05:53] [#]} ({But not} 27. Nxc5 $2 Rh1+ $1 {[%mdl 512]} 28. Kf2 (28. Bxh1 $2 Rxh1+ 29. Kf2 Rh2+ 30. Kg1 Rxb2 $19) 28... Bxg2 29. Rxh1 Bxh1 $19) (27. Re1 {only move.}) 27... Nxd6 $2 {[%emt 0:00:54] The board is on fire.} ({Better is} 27... Kd7 $1 $19 28. Ne4 Rh2 29. Nxc5+ Kc8 30. Qb8+ (30. Na6 $2 Qb6 $19) 30... Qxb8 31. Rxb8+ Kxb8 32. Rb1+ Kc7 33. Na6+ Kd7 34. Nc5+ Ke7 35. Bxc6 Nxg3 36. Rb7+ Kf8) 28. exd6 $11 {[%emt 0:01:11]} Rh1+ $1 {[%emt 0:00:08]} (28... Qxd6 $2 29. Bxc6 f5 30. Bg2 $18) 29. Kf2 $2 {[%emt 0:00:00][%mdl 8192] [#]} (29. Bxh1 $11 Rxh1+ 30. Kf2 Rh2+ 31. Kf1 Rxb2 32. dxc7) 29... R8h2 $1 {[%emt 0:00:08][%csl Gc6][%cal Rh2g2][%mdl 512] Black is clearly winning.} 30. Rxh1 {[%emt 0:01:13]} (30. Qb8+ Qxb8) 30... Rxg2+ {[%emt 0:00:05]} 31. Kf1 {[%emt 0:00:57]} Rxb2 {[%emt 0:00:05] Weighted Error Value: White=0.71/Black=0.29 (precise)} 0-1

[Event "67th Mexican-ch Open 2022"]
[Site "Chihuahua"]
[Date "2022.04.14"]
[Round "2.15"]
[White "Dominguez Gonzalez, Edgar"]
[Black "Torres Rosas, Luis Carlos"]
[Result "*"]
[WhiteElo "1785"]
[BlackElo "2356"]
[Annotator "TA"]
[PlyCount "24"]
[EventDate "2022.04.12"]
[EventType "swiss"]
[EventCountry "MEX"]
[SourceTitle "playchess.com"]
[Source "ChessBase"]
[SourceQuality "1"]
[TimeControl "5400+30"]

{[%evp 9,11,-6,-9,-16]} 1. e4 {[%emt 0:00:08]} c5 {[%emt 0:00:50]} 2. Nf3 {[%emt 0:00:09]} e6 {[%emt 0:00:43]} 3. Qe2 {[%emt 0:00:13]} Nc6 {[%emt 1:30:27]} 4. g3 {[%emt 0:00:10]} Be7 {[%emt 0:01:19]} 5. Bg2 {[%emt 0:00:23]} d5 {[%emt 0:03:34]} 6. d3 {[%emt 0:00:08] [#] Not much happened in this game. C00: French: Unusual White 2nd moves.} {Predecessor:} h5 $146 7. h3 Nf6 8. O-O b6 9. e5 Nd7 10. c4 dxc4 11. dxc4 Bb7 12. Nc3 a6 {1-0 (25) Deac,B (2679)-Vasquez Schroder,R (2494) Chess.com INT 2022} *

[Event "67th Mexican-ch Open 2022"]
[Site "Chihuahua"]
[Date "2022.04.14"]
[Round "2.16"]
[White "Figueredo Losada, Leonel"]
[Black "Contreras Frias, Gabriel"]
[Result "*"]
[WhiteElo "2342"]
[BlackElo "1771"]
[Annotator "TA"]
[PlyCount "26"]
[EventDate "2022.04.12"]
[EventType "swiss"]
[EventCountry "MEX"]
[SourceTitle "playchess.com"]
[Source "ChessBase"]
[SourceQuality "1"]
[TimeControl "5400+30"]

{[%evp 8,8,38]} 1. d4 {[%emt 0:00:07]} d6 {[%emt 0:01:46]} 2. Nf3 {[%emt 0:03:54]} g6 {[%emt 0:00:13]} 3. c4 {[%emt 0:00:20]} Bg7 {[%emt 0:00:16]} 4. Nc3 {[%emt 0:01:02]} Bg4 {[%emt 0:07:44] [#] An uneventful encounter.} {Predecessor:} 5. h3 $146 Bxf3 6. exf3 {A41: 1 d4 d6: Tartakower System and Modern Defence.} Nd7 7. Be3 e6 8. Be2 Ne7 9. g4 d5 10. f4 c6 11. Qd2 Nb6 12. c5 Nc4 13. Bxc4 dxc4 {1-0 (51) Duda,J (2730)-Nakamura,H (2745) Chess.com INT 2019} *

[Event "67th Mexican-ch Open 2022"]
[Site "Chihuahua"]
[Date "2022.04.14"]
[Round "2.16"]
[White "Montes Orozco, Miguel Angel"]
[Black "Figueredo Losada, Leonel"]
[Result "1/2-1/2"]
[ECO "A42"]
[WhiteElo "1914"]
[BlackElo "2342"]
[Annotator "TA"]
[PlyCount "78"]
[EventDate "2022.04.12"]
[EventType "swiss"]
[EventCountry "MEX"]
[SourceTitle "playchess.com"]
[Source "ChessBase"]
[SourceQuality "1"]
[TimeControl "5400+30"]

{[%evp 13,78,14,21,-46,-55,-135,-127,-131,-108,-106,-120,-116,-118,-126,-127,-150,-143,-176,-97,-94,-77,-73,-34,-30,-39,-68,-71,-62,-33,-54,-19,-19,-19,-21,-13,-13,-13,-13,-18,-10,0,0,0,-8,22,-28,-22,-29,-6,-25,-27,-24,487,-551,-530,-517,-508,-432,-195,-267,-14,-8,-8,-9,-8,-8,8]} 1. d4 {[%emt 0:00:07]} d6 {[%emt 0:01:46]} 2. Nf3 {[%emt 0:03:54]} g6 {[%emt 0:00:13]} 3. c4 {[%emt 0:00:20]} Bg7 {[%emt 0:00:16]} 4. Nc3 {[%emt 0:01:02]} Bg4 {[%emt 0:07:44]} 5. e4 {[%emt 0:17:35]} Nc6 {[%emt 0:16:24]} 6. Be3 {[%emt 0:03:46]} e5 {[%emt 0:02:03]} 7. d5 {[%emt 0:00:29]} Nd4 $1 {[%emt 0:01:41]} 8. Bxd4 {[%emt 0:02:20] A42: Modern Defence: Averbakh Variation.} (8. Be2 $11) 8... exd4 $15 {[%emt 0:00:04]} 9. Nb5 {[%emt 0:02:09]} (9. Ne2 $15) 9... Bxf3 $17 {[%emt 0:08:09]} 10. gxf3 {[%emt 0:08:09] Black is better.} c6 {[%emt 0:00:27]} 11. Nxd4 {[%emt 0:01:41]} Qa5+ {[%emt 0:07:44]} (11... Qb6 $6 12. Nb3 $11) 12. Ke2 {[%emt 0:04:33]} Qc5 {[%emt 0:10:47][%csl LRc4,LRd4]} (12... Qb6 $6 13. Nb3 $11) 13. Nb3 {[%emt 0:04:37]} Qxc4+ {[%emt 0:00:08]} 14. Qd3 {[%emt 0:01:08] [#]} cxd5 $146 {[%emt 0:00:56]} ({Predecessor:} 14... Qxd3+) 15. Rc1 {[%emt 0:04:08]} Qb4 {[%emt 0:04:35]} (15... Qxd3+ $19 16. Kxd3 Bxb2) 16. Qxd5 {[%emt 0:01:00]} Ne7 {[%emt 0:10:24][%cal Bg8e7,Be7c6,Bc6b4][%mdl 32]} 17. Qa5 {[%emt 0:01:29]} Nc6 {[%emt 0:02:46]} 18. Qxb4 {[%emt 0:02:43]} Nxb4 {[%emt 0:00:03]} 19. Rc7 {[%emt 0:01:16]} O-O {[%emt 0:05:21]} 20. Bh3 {[%emt 0:02:16]} Rab8 {[%emt 0:00:22]} 21. Na5 {[%emt 0:04:42]} Be5 {[%emt 0:05:10]} 22. a3 {[%emt 0:12:58]} (22. Rxb7 Rxb7 23. Nxb7 Rb8 $17) (22. Nxb7 Na6 23. Rc6 Rxb7 $17) 22... Na6 {[%emt 0:01:31]} 23. Rc2 {[%emt 0:01:55]} (23. Rxb7 Rxb7 24. Nxb7 Rb8 $19) 23... Nc5 {[%emt 0:00:40]} 24. b4 {[%emt 0:02:47]} Ne6 {[%emt 0:00:03]} 25. Bxe6 {[%emt 0:00:32]} fxe6 {[%emt 0:00:03]} 26. Rc7 {[%emt 0:01:04]} Rf6 {[%emt 0:03:03]} 27. Nc4 {[%emt 0:08:52]} Bf4 {[%emt 0:00:07] [#] White must now prevent ...d5.} 28. Ne3 {[%emt 0:00:03] Inhibits d5.} h5 {[%emt 0:05:17]} 29. Rhc1 {[%emt 0:01:24]} (29. Ng2 $142) 29... Bxh2 $11 {[%emt 0:01:40][%cal Od6d5] Threatens to win with ...d5!} 30. Re7 {[%emt 0:00:15]} Rbf8 {[%emt 0:02:23]} (30... d5 $5) 31. Rcc7 {[%emt 0:00:07] Rg7+ would kill now.} R8f7 {[%emt 0:00:17] Inhibits Rg7+.} (31... Rxf3 $2 {is a self mate.} 32. Rg7+ Kh8 33. Rh7+ Kg8 34. Rcg7#) 32. Rxb7 {[%emt 0:01:34]} Rxf3 $2 {[%emt 0:00:12][%mdl 8192] [#]} (32... Kf8 $11 {and Black stays safe.} 33. Rxf7+ Rxf7 34. Rb8+ Kg7) 33. Rxa7 $4 {[%emt 0:00:55][%mdl 8192]} (33. Nf5 $1 $18 {[%mdl 512] is the narrow road to win. White wants to mate with Re8+.} gxf5 (33... R3xf5 34. exf5) 34. Kxf3 fxe4+ 35. Kxe4 d5+ 36. Ke3 Rxe7 37. Rxe7) 33... Rxf2+ $19 {[%emt 0:00:09]} 34. Kd3 {[%emt 0:00:05]} Rxe7 {[%emt 0:02:21]} 35. Rxe7 {[%emt 0:00:07]} Bg1 {[%emt 0:00:25]} (35... Bf4 $142 36. Nc2 h4 37. Re8+ Kf7) 36. e5 {[%emt 0:05:55]} ({Not} 36. Rxe6 $2 Kf7 37. Rxd6 Rf3 $19) (36. Nc4 $142) 36... dxe5 $2 {[%emt 0:01:20]} ({Black should try} 36... Rf3 $19 37. exd6 Rxe3+ 38. Kc4 Kf8) 37. Rxe6 $11 {[%emt 0:00:10] The position is equal.} Kf7 {[%emt 0:00:54]} 38. Rxe5 {[%emt 0:00:03]} Ra2 {[%emt 0:00:59]} 39. Nc2 {[%emt 0:01:18] And now Kc3 would win.} h4 {[%emt 0:01:33] White used his chance.  Weighted Error Value: White=0.36/Black=0.49} 1/2-1/2

[Event "67th Mexican-ch Open 2022"]
[Site "Chihuahua"]
[Date "2022.04.14"]
[Round "2.17"]
[White "Garcia Guerrero, Isaac Antonio"]
[Black "Rascon Vega, Alfonso"]
[Result "0-1"]
[ECO "D00"]
[WhiteElo "2338"]
[BlackElo "2107"]
[Annotator "TA"]
[PlyCount "82"]
[EventDate "2022.04.12"]
[EventType "swiss"]
[EventCountry "MEX"]
[SourceTitle "playchess.com"]
[Source "ChessBase"]
[SourceQuality "1"]
[TimeControl "5400+30"]

{[%evp 9,82,-12,7,-13,-23,-41,0,0,7,-104,-53,-81,-81,-77,-34,-79,-63,-77,0,-34,-33,-230,-166,-256,-219,-293,-241,-418,-445,-408,-428,-431,-425,-497,-501,-511,0,-511,-511,-502,-418,-504,-504,-483,-504,-504,-504,-504,-504,-504,-504,-504,-504,-504,-503,-495,-453,-638,-631,-689,-631,-758,-625,-525,-511,-750,-719,-925,-925,-847,-837,-1022,-992,-883,-869]} 1. d4 {[%emt 0:00:05]} Nf6 {[%emt 0:00:18]} 2. Bg5 {[%emt 0:00:09]} d5 {[%emt 0:00:16]} 3. e3 {[%emt 0:00:25]} c5 {[%emt 0:00:50]} 4. Bxf6 {[%emt 0:00:21]} gxf6 {[%emt 0:00:07]} 5. c4 {[%emt 0:00:17]} cxd4 {[%emt 0:07:59]} 6. exd4 {[%emt 0:00:17] D00: 1 d4 d5: Unusual lines.} (6. Qxd4 $5 {[%cal Rc4d5]} Nc6 7. Qxd5 $15) 6... Nc6 {[%emt 0:04:20]} 7. Nc3 {[%emt 0:03:08]} e5 {[%emt 0:04:08]} (7... dxc4 $15 8. Bxc4 Qxd4 9. Qxd4 Nxd4) 8. cxd5 $11 {[%emt 0:10:28] The position is equal.} Nxd4 {[%emt 0:00:24]} 9. Nge2 {[%emt 0:08:28] [#]} (9. Bd3 $11 {keeps the balance.}) 9... Bc5 $146 {[%emt 0:07:31] &Nero is more active.} (9... Qb6 $1 $17 {Hoping for ...Bf5.} 10. Qd2 (10. Nxd4 exd4 11. Ne4 Qa5+ 12. Ke2 Qb5+ 13. Ke1 Bb4+ 14. Nd2 Bxd2+ 15. Qxd2 Qxd5 $17) 10... Bd7) ({Predecessor:} 9... Qb6 10. Qd2 Bf5 11. Rc1 Bb4 12. a3 Nb3 13. Qd1 Bc5 14. Ng3 Bxf2+ 15. Ke2 Qe3# {0-1 (15) Grieve,H (2351)-Gunina,V (2431) Chess.com INT 2020}) 10. Ng3 {[%emt 0:05:43]} f5 {[%emt 0:02:22]} 11. Bd3 {[%emt 0:04:30]} Bd7 {[%emt 0:07:50][%cal Oh7h5]} (11... h5 $5) 12. Qh5 {[%emt 0:03:23][%cal Rg3f5]} Qf6 {[%emt 0:02:28]} 13. O-O {[%emt 0:02:28]} O-O-O {[%emt 0:01:05]} (13... Rg8 $17) 14. Rac1 {[%emt 0:11:49][%cal Ob2b4] And now b4! would win.} (14. Nce2 $5 {[%cal Ra1c1]} Kb8 15. Nxd4 Bxd4 16. Nxf5 $11) 14... Kb8 {[%emt 0:01:04]} 15. b4 $2 {[%emt 0:15:03] Black converts the advantage convincingly.} ({White has to play} 15. Nce2 $15 Nxe2+ 16. Nxe2) 15... Bb6 {[%emt 0:06:20]} ({Stronger than} 15... Bxb4 16. Nce2 $17) 16. Nce2 {[%emt 0:08:30]} (16. d6 $142) 16... e4 $19 {[%emt 0:02:01]} 17. Bc4 {[%emt 0:03:58]} Rhg8 {[%emt 0:07:15][%cal Bh8g8,Bg8g4,Bg4h4,Bh4h2][%mdl 32]} 18. Kh1 $2 {[%emt 0:00:46]} (18. d6) 18... Rg4 {[%emt 0:03:48]} 19. Nxd4 {[%emt 0:01:58]} Bxd4 {[%emt 0:01:26]} 20. d6 {[%emt 0:01:32]} Rh4 {[%emt 0:01:36]} 21. Qxf7 {[%emt 0:03:54] [#]} Qh6 $1 {[%emt 0:10:23]} ({Inferior is} 21... Qxd6 22. Rcd1 $17) 22. Qe7 {[%emt 0:00:59]} Rxh2+ {[%emt 0:01:11]} 23. Kg1 {[%emt 0:00:07]} Bf6 {[%emt 0:00:14] A strong pair of Bishops.} 24. Bb5 {[%emt 0:00:50]} Bxe7 {[%emt 0:08:13]} 25. dxe7 {[%emt 0:00:09]} Rg8 {[%emt 0:00:30] ( -> ...Rxg3). Black is clearly winning.} 26. Bxd7 {[%emt 0:00:55][%cal Oc1c8] Threatens to win with Rc8+!} f4 {[%emt 0:00:32]} 27. Rc8+ {[%emt 0:03:21]} Rxc8 {[%emt 0:00:08]} 28. Bxc8 {[%emt 0:00:05]} fxg3 {[%emt 0:04:06][%csl Gh6][%cal Rh2h1]} 29. Bh3 {[%emt 0:00:18] [#]} gxf2+ $1 {[%emt 0:00:07]} 30. Rxf2 {[%emt 0:00:51]} Qc1+ {[%emt 0:00:22]} 31. Kxh2 {[%emt 0:00:43][%mdl 4096] Endgame KQ-KRB} Qc7+ {[%emt 0:00:05]} 32. g3 {[%emt 0:00:28]} Qxe7 {[%emt 0:00:06]} 33. b5 {[%emt 0:00:16]} (33. Re2 $142) 33... e3 {[%emt 0:01:09]} 34. Rc2 {[%emt 0:00:10][%csl Gh3][%cal Rc2c8]} b6 {[%emt 0:01:47] aiming for ...e2.} 35. Re2 {[%emt 0:04:28]} Kc7 {[%emt 0:00:50]} 36. Bg2 {[%emt 0:00:38]} Kd6 {[%emt 0:00:17] White must now prevent ...Qf6.} 37. Bc6 {[%emt 0:01:30]} Kc5 {[%emt 0:00:19]} 38. Kg2 {[%emt 0:00:19]} Kd4 {[%emt 0:00:05]} 39. Bf3 {[%emt 0:00:29]} Qb4 {[%emt 0:00:47]} 40. Bc6 {[%emt 0:03:34]} Kd3 {[%emt 0:00:19]} 41. Bf3 {[%emt 0:00:06]} Qxb5 {[%emt 0:16:22] Weighted Error Value: White=0.61/Black=0.27 (precise)} 0-1

[Event "67th Mexican-ch Open 2022"]
[Site "Chihuahua"]
[Date "2022.04.14"]
[Round "2.17"]
[White "Kowalski Davila, Emilio Luis"]
[Black "Garcia Guerrero, Isaac Antonio"]
[Result "*"]
[WhiteElo "1735"]
[BlackElo "2338"]
[Annotator "TA"]
[PlyCount "32"]
[EventDate "2022.04.12"]
[EventType "swiss"]
[EventCountry "MEX"]
[SourceTitle "playchess.com"]
[Source "ChessBase"]
[SourceQuality "1"]
[TimeControl "5400+30"]

{[%evp 9,13,0,0,0,-11,-36]} 1. d4 {[%emt 0:00:05]} Nf6 {[%emt 0:00:18]} 2. Bg5 {[%emt 0:00:09]} d5 {[%emt 0:00:16]} 3. e3 {[%emt 0:00:25]} c5 {[%emt 0:00:50]} 4. Bxf6 {[%emt 0:00:21]} gxf6 {[%emt 0:00:07]} 5. c4 {[%emt 0:00:17]} cxd4 {[%emt 0:07:59]} 6. exd4 {[%emt 0:00:17] B13: Caro-Kann: Exchange Variation and Panov-Botvinnik Attack.} Nc6 {[%emt 0:04:20]} 7. Nc3 {[%emt 0:03:08] [#] A rather calm draw.} {Predecessor:} dxc4 $146 8. d5 Ne5 9. Bxc4 Nxc4 10. Qa4+ Bd7 11. Qxc4 Rc8 12. Qd3 Rg8 13. g3 b5 14. a3 Qa5 15. Rd1 b4 16. axb4 Qxb4 {1-0 (30) Martirosyan,H (2656)-Svidler,P (2709) Riga 2021} *

[Event "67th Mexican-ch Open 2022"]
[Site "Chihuahua"]
[Date "2022.04.14"]
[Round "2.18"]
[White "Benitez Lozano, Javier"]
[Black "Villanueva De Leon, Vanessa"]
[Result "*"]
[WhiteElo "2309"]
[BlackElo "1729"]
[Annotator "TA"]
[PlyCount "26"]
[EventDate "2022.04.12"]
[EventType "swiss"]
[EventCountry "MEX"]
[SourceTitle "playchess.com"]
[Source "ChessBase"]
[SourceQuality "1"]
[TimeControl "5400+30"]

{[%evp 9,13,25,18,21,15,3]} 1. d4 {[%emt 0:00:03][%cal Bd2d4,Bd4d5][%mdl 32]} Nf6 {[%emt 0:00:14]} 2. c4 {[%emt 0:00:06]} e6 {[%emt 0:00:09]} 3. Nc3 {[%emt 0:00:30]} Bb4 {[%emt 0:00:14]} 4. Qc2 {[%emt 1:31:51]} b6 {[%emt 0:00:46]} 5. e4 {[%emt 0:00:58]} c5 {[%emt 0:00:38]} 6. d5 {[%emt 0:00:53] E32: Nimzo-Indian: Classical (4 Qc2): 4...0-0.} Qe7 {[%emt 0:00:29]} 7. Nge2 {[%emt 0:13:13] [#] An uneventful encounter.} {Predecessor:} exd5 $146 8. exd5 d6 9. Bg5 O-O 10. O-O-O h6 11. Bh4 Nbd7 12. Ng3 Bxc3 13. Nf5 Qe5 {1-0 (84) Bok,B (2624)-Matlakov,M (2674) Chess.com INT 2022} *

[Event "67th Mexican-ch Open 2022"]
[Site "Chihuahua"]
[Date "2022.04.14"]
[Round "2.19"]
[White "Sandoval Mercado, Carlos"]
[Black "Davalos Prieto, Abel Justo"]
[Result "1-0"]
[ECO "E05"]
[WhiteElo "2289"]
[BlackElo "2103"]
[Annotator "TA"]
[PlyCount "111"]
[EventDate "2022.04.12"]
[EventType "swiss"]
[EventCountry "MEX"]
[SourceTitle "playchess.com"]
[Source "ChessBase"]
[SourceQuality "1"]
[TimeControl "5400+30"]

{[%evp 20,111,0,0,0,0,0,2,0,0,0,0,5,0,0,7,0,0,0,0,45,29,33,24,35,0,17,25,30,25,35,17,12,0,69,71,102,83,103,72,120,116,111,66,129,123,170,155,165,167,160,140,177,60,60,60,68,74,168,166,166,166,166,156,166,106,96,85,153,185,177,180,157,159,1963,1717,29963,29955,29962,29951,6424,9317,29976,29977,29976,29977,29977,29978,29978,29979,29979,29979,29975,29971]} 1. d4 {[%emt 0:00:03]} d5 {[%emt 0:00:23]} 2. c4 {[%emt 0:00:06]} e6 {[%emt 0:00:15]} 3. Nf3 {[%emt 0:00:07]} Nf6 {[%emt 0:00:37]} 4. g3 {[%emt 0:00:05]} Be7 {[%emt 0:00:39]} 5. Bg2 {[%emt 0:00:08]} O-O {[%emt 0:00:29]} 6. O-O {[%emt 0:00:06]} dxc4 {[%emt 0:00:47]} 7. Qc2 {[%emt 0:00:22]} a6 {[%emt 0:01:00]} 8. Qxc4 {[%emt 0:00:06]} b5 {[%emt 0:00:21]} 9. Qc2 {[%emt 0:00:07]} Bb7 {[%emt 0:00:14][%cal Bc8b7,Bb7e4,Be4g6,Bg6h5][%mdl 32]} 10. Bd2 {[%emt 0:00:37]} Be4 {[%emt 0:01:44]} 11. Qc1 {[%emt 0:00:10]} c6 {[%emt 0:01:07] E05: Open Catalan: 5 Nf3 Be7.} 12. a4 $1 {[%emt 0:00:56][%mdl 4] is recently more successful than 12.Rd1.} Nbd7 {[%emt 0:01:37]} 13. Nc3 {[%emt 0:00:12]} Bg6 {[%emt 0:00:48] The position is equal.} 14. Nh4 {[%emt 0:00:10]} Bh5 {[%emt 0:01:35]} 15. h3 {[%emt 0:00:10]} Nd5 {[%emt 0:12:45]} 16. axb5 {[%emt 0:01:51]} axb5 {[%emt 0:00:41]} 17. Rxa8 {[%emt 0:00:03]} Qxa8 {[%emt 0:00:17]} 18. e4 {[%emt 0:00:02]} Nxc3 {[%emt 0:04:10]} 19. Qxc3 {[%emt 0:02:09][%cal Og3g4] [#]} Nb6 $146 {[%emt 0:16:20]} ({Predecessor:} 19... c5 20. dxc5 Nxc5 21. g4 Bg6 22. Nxg6 hxg6 23. Be3 Na4 24. Qb3 Qb8 25. Rd1 Bf6 {0-1 (49) Nguyen,A (2307)-Bente,B (2226) Playchess.com INT 2021}) 20. b3 {[%emt 0:05:45]} b4 {[%emt 0:04:08]} 21. Qd3 {[%emt 0:00:01][%cal Og3g4]} Rd8 {[%emt 0:01:02]} 22. Rc1 {[%emt 0:08:37]} h6 {[%emt 0:10:43]} 23. Qc2 {[%emt 0:12:11]} Rc8 {[%emt 0:04:57] [#]} ({Resist} 23... Rxd4 24. Be3 Qd8 25. Bxd4 Qxd4 26. Qxc6 Bxh4 27. gxh4 $16) 24. g4 $1 {[%emt 0:14:45]} Bxh4 {[%emt 0:02:02]} 25. gxh5 {[%emt 0:00:03]} Be7 $1 {[%emt 0:00:34] Against Qc5} 26. Be3 {[%emt 0:00:12]} Qa5 {[%emt 0:02:15]} ({Black should play} 26... c5 $11 27. d5 (27. dxc5 Bxc5 28. e5 Qb8 $11) 27... exd5) 27. Qd1 $14 {[%emt 0:00:37]} Qa6 {[%emt 0:03:40]} 28. Qg4 {[%emt 0:11:58] Bxh6 is the strong threat.} Kh8 {[%emt 0:04:24][%cal Oc6c5]} 29. Kh1 {[%emt 0:02:24]} Qb7 {[%emt 0:03:38]} (29... Qd3 $142) 30. Rg1 {[%emt 0:01:43][%cal Od4d5]} Rg8 {[%emt 0:02:43]} 31. e5 {[%emt 0:07:51]} Qc8 {[%emt 0:02:01]} (31... Qd7 $1 $14) 32. Qf3 $16 {[%emt 0:11:17][%csl LRc6,LRf7] &Bianco is more active.} Qe8 {[%emt 0:01:15]} (32... f6 $16) 33. Qxc6 $18 {[%emt 0:00:07]} Qxc6 {[%emt 0:00:30]} 34. Bxc6 {[%emt 0:00:02]} Rc8 {[%emt 0:00:54]} 35. Be4 {[%emt 0:12:26]} Nd5 {[%emt 0:00:52]} 36. Rc1 {[%emt 0:05:08]} ({Only move:} 36. Bxd5 $18 exd5 37. Ra1) 36... Rxc1+ $14 {[%emt 0:01:22]} 37. Bxc1 {[%emt 0:00:02][%mdl 4096] Endgame KBB-KBN} Nc3 {[%emt 0:04:34]} 38. Bc6 {[%emt 0:00:42]} Ne2 {[%emt 0:01:12]} (38... Bd8 $16 {was worth a try.}) 39. Be3 $18 {[%emt 0:00:17]} Bg5 {[%emt 0:00:21]} 40. Kg2 {[%emt 0:02:25]} Nf4+ {[%emt 0:00:34]} 41. Kg3 {[%emt 0:03:12]} Nxh5+ {[%emt 0:00:44]} 42. Kf3 {[%emt 0:00:54]} (42. Kg4 $18 Bxe3 43. fxe3) 42... Kg8 $16 {[%emt 0:04:45]} 43. Ke4 {[%emt 0:00:01]} f5+ {[%emt 0:04:05] [#]} (43... Be7 $142) 44. Kd3 $1 {[%emt 0:01:22] aiming for Bxg5.} Nf4+ {[%emt 0:00:12]} 45. Kc4 {[%emt 0:00:42][%cal Oh3h4] Black must now prevent h4!} Nxh3 {[%emt 0:00:08] [#]} 46. Bg2 $1 {[%emt 0:00:44]} ({Don't do} 46. Kxb4 $6 f4 47. Bd2 Nxf2 $14) 46... f4 $2 {[%emt 0:01:49] Loses the game.} (46... Nf4 $16 47. Bf3 Kf7) 47. Bxh3 $18 {[%emt 0:00:07]} fxe3 {[%emt 0:00:06]} 48. Bxe6+ {[%emt 0:00:26] KB-KB} Kf8 {[%emt 0:00:07]} 49. fxe3 {[%emt 0:00:03]} Bxe3 {[%emt 0:00:08]} 50. d5 {[%emt 0:00:06][%cal Bd4d5,Bd5d6][%mdl 32] Bf5 would kill now.} Ke7 {[%emt 0:00:40]} 51. Bf5 {[%emt 0:00:50] White mates.} Bf4 {[%emt 0:01:05]} 52. d6+ {[%emt 0:00:02]} Kd8 {[%emt 0:00:59]} 53. Kd5 {[%emt 0:00:05]} h5 {[%emt 0:01:11]} 54. e6 {[%emt 0:00:54]} Bg5 {[%emt 0:00:19]} 55. Kc4 {[%emt 0:00:08]} Bf6 {[%emt 0:01:02]} 56. Kxb4 {[%emt 0:00:09] Weighted Error Value: White=0.09 (flawless) /Black=0.32} 1-0